Cogmind - Beta 15 *** ADVENTURER MODE // 2025.09.22 @ 18:06:04 Player: Crusang Result: Destroyed by G-67 Veteran with Plasma Rifle Performance ------------- Evolutions (5) 2500 Regions Visited (13) 2600 Robots Destroyed (109) 545 Value Destroyed (4109) 4109 Prototype IDs (9) 180 Alien Tech Used (0) 0 Bonus (222) 222 TOTAL SCORE: 10156 Bonus ------- Pacifist 200 High Alert Combat Kills 22 Cogmind --------- Core Integrity 0/1000 Matter 277/300 Energy 100/100 System Corruption 6% Temperature Cool (12) Movement Hovering (260) Ox3 Location -5/Factory Parts ------- > --- POWER (4) -------- Backup Power III > --- PROPULSION (4) --- Improved Carbon-fiber Leg Armored Leg Antigrav System > --- UTILITY (5) ------ Enhanced Optical Array Makeshift System Shield > --- WEAPON (4) ------- Disruptor Cannon Disruptor Cannon Advanced Plasma Cannon Advanced Plasma Cannon > --- INVENTORY (5) ---- Tesla Rifle Wave Gun Disruptor Cannon Remote Datajack Makeshift Spear Peak State ------------ > --- POWER ------------ Light Nuclear Core Light Nuclear Core Neutrino Core Neutrino Core > --- PROPULSION ------- Carbon-fiber Leg Carbon-fiber Leg Improved Carbon-fiber Leg > --- UTILITY ---------- 0b10 Decoder Chip [Generic] Cloaking Device Cloaking Device Improved Thermal Shield Makeshift System Shield > --- WEAPON ----------- Tesla Rifle Advanced Plasma Cannon Advanced Plasma Cannon Advanced Plasma Cannon > --- INVENTORY -------- Thermic Laser Phase Cannon Advanced Plasma Cannon Remote Datajack Makeshift Spear [Rating: 79] Favorites ----------- Power Light Nuclear Core Engine Light Ion Engine Power Core Light Nuclear Core Reactor Antimatter Reactor Propulsion Carbon-fiber Leg Treads Heavy Treads Leg Carbon-fiber Leg Hover Unit Gravmag System Utility Terrain Scan Processor Device Sensor Array Storage Small Storage Unit Processor Terrain Scan Processor Hackware Hacking Suite Protection Improved Light Armor Plating Weapon Katana Energy Gun Thermic Laser Energy Cannon Advanced Plasma Cannon Ballistic Gun Light Assault Rifle Ballistic Cannon Advanced Assault Cannon Launcher Rocket Launcher Special Weapon Remote Datajack Impact Weapon Mace Slashing Weapon Katana Piercing Weapon Makeshift Spear Build | -11 -10 -10 -9 -8 -7 -7 -7 -7 -7 -6 -6 -6 -5 ------- Run | Yrd Mat Min Mat Mat Fac Was Fac Low Low Fac Low Low Fac Slots Evolved 10 | . . . 2 2 2 . . . . 2 . . 2 Power 3 | . . . 1 . 1 . . . . . . . 1 Propulsion 2 | . . . . 1 . . . . . 1 . . . Utility 3 | . . . 1 1 . . . . . . . . 1 Weapon 2 | . . . . . 1 . . . . 1 . . . Parts Attached 113 | 7 2 . 7 9 21 6 14 11 3 8 5 1 19 Power 33 | 2 . . 2 3 11 3 3 4 1 . 2 . 2 Engine 18 | 2 . . 2 3 8 . 2 . . . . . 1 Core 12 | . . . . . 3 . 1 4 1 . 2 . 1 Reactor 3 | . . . . . . 3 . . . . . . . Propulsion 17 | 2 . . . 5 1 1 3 . . 3 . . 2 Treads 4 | . . . . 2 . 1 1 . . . . . . Leg 10 | 2 . . . 3 1 . . . . 3 . . 1 Wheel . | . . . . . . . . . . . . . . Hover 3 | . . . . . . . 2 . . . . . 1 Flight . | . . . . . . . . . . . . . . Utility 25 | 1 2 . 1 . 5 2 . 3 2 1 3 . 5 Device 11 | . 2 . 1 . . 1 . 1 2 1 . . 3 Storage 2 | 1 . . . . . . . . . . . . 1 Processor 5 | . . . . . 2 . . . . . 2 . 1 Hackware 5 | . . . . . 3 . . 1 . . 1 . . Protection 2 | . . . . . . 1 . 1 . . . . . Artifact . | . . . . . . . . . . . . . . Weapon 38 | 2 . . 4 1 4 . 8 4 . 4 . 1 10 Energy Gun 16 | 1 . . 2 . 1 . 4 2 . 4 . . 2 Energy Cannon 9 | . . . . . . . . . . . . 1 8 Ballistic Gun 5 | 1 . . . . 1 . 2 1 . . . . . Ballistic Cannon 2 | . . . . . 1 . 1 . . . . . . Launcher 1 | . . . 1 . . . . . . . . . . Special Weapon 1 | . . . . . . . 1 . . . . . . Impact Weapon 1 | . . . 1 . . . . . . . . . . Slashing Weapon 2 | . . . . 1 1 . . . . . . . . Piercing Weapon 1 | . . . . . . . . 1 . . . . . Special Melee Weapon . | . . . . . . . . . . . . . . Unidentified Prototypes 7 | . . . . . 4 . 1 . . 1 . . 1 Corrupted Parts 1 | . . . . . . . . . . 1 . . . System Corruption 4 | . . . . . . . . . . 4 . . . Parts Lost 37 | . . . 1 2 4 5 5 3 2 4 1 . 10 Power 16 | . . . 1 1 2 2 2 2 1 1 . . 4 Propulsion 5 | . . . . . 1 . . 1 1 . . . 2 Utility 8 | . . . . 1 1 1 1 . . 2 . . 2 Weapon 8 | . . . . . . 2 2 . . 1 1 . 2 Highest Loss Streak 4 | . . . 1 1 3 4 3 2 1 4 1 . 4 To Critical Strikes . | . . . . . . . . . . . . . . Average Backups 4 | . . 1 3 4 6 4 3 4 4 3 4 5 4 Power . | . . . . . 2 1 1 . 1 1 1 1 . Propulsion . | . . . . . . . . . . . . . . Utility . | . . 1 1 . . . . . . . . 1 . Weapon 2 | . . . 2 3 4 3 2 3 2 1 2 2 2 Tool/Special . | . . . . . . . . . . . . . . Unused Backups 4 | . . . 1 . 1 1 . . . . . . 1 Power . | . . . . . . . . . . . . . . Propulsion . | . . . . . . . . . . . . . . Utility 1 | . . . . . . 1 . . . . . . . Weapon 3 | . . . 1 . 1 . . . . . . . 1 Tool/Special . | . . . . . . . . . . . . . . Average Slot Usage (%) 86 | . 95 100 89 77 91 70 78 83 79 68 85 88 84 Engine 9 | . 14 14 20 14 15 5 11 8 6 . . . 1 Core 6 | . . . . . 4 7 . 11 15 17 13 20 15 Reactor 1 | . . . . . . 6 8 . . . . . . Treads 2 | . . . . 11 . 2 11 . . . . . . Leg 14 | . 28 28 22 7 21 9 . . . 3 20 20 16 Hover 1 | . . . . . . . 2 13 3 . . . . Device 11 | . 19 28 24 24 6 . . 4 13 8 . . 9 Storage 1 | . 5 . . . 6 . . . . . . . . Processor 5 | . . . . . 7 7 7 7 7 6 12 13 7 Hackware 6 | . . . . . 6 15 13 7 7 6 12 13 6 Energy Gun 10 | . 14 14 9 9 3 . 8 9 7 18 25 20 6 Energy Cannon 1 | . . . . . . . . . . . . 2 15 Ballistic Gun 5 | . 14 14 8 . 1 . 8 7 7 1 . . . Ballistic Cannon 1 | . . . . . 5 5 2 . . . . . . Slashing Weapon 2 | . . . . 7 9 6 . . . . . . . Peak Build Rating 79 | 6 7 7 12 22 45 48 58 44 42 47 61 61 79 Average Rating 35 | 4 6 7 10 14 35 38 47 39 39 40 52 57 69 On Entrance 28 | . 6 7 7 12 22 41 42 28 39 36 47 56 61 Naked Turns . | . . . . . . . . . . . . . . Heaviest Build 74 | 11 12 8 19 28 52 48 66 33 31 35 49 53 74 Greatest Support 98 | 20 20 20 20 47 47 70 98 18 9 48 48 48 64 Greatest Overweight (x) 14 | . . . . 1 2 14 2 3 10 11 1 1 3 Average Overweight (x) . | . . . . . . . . 1 5 3 . . . Largest Inventory Capacity 25 | 8 8 5 5 8 8 5 5 5 5 5 5 5 25 Average Capacity 5 | 5 6 5 5 5 7 5 5 5 5 5 5 5 5 Most Carried 8 | . 1 2 5 5 8 5 5 5 5 4 5 5 5 Average Carried 4 | . . 1 3 4 6 4 3 4 4 3 4 5 4 Final Capacity 8 | 8 5 5 5 8 5 5 5 5 5 5 5 5 5 Final Carried 5 | . 1 2 4 4 5 5 5 5 5 4 5 5 5 Class Distribution -------------------- 32% | Mutant 21% | Hacker-Mutant 12% | Hacker-Tank 12% | Hacker-Gunner 7% | Hacker-Skirmisher 5% | Scavenger-Tank 4% | Scavenger-Mutant Dominant Class ---------------- Mutant | -10/Materials Mutant | -10/Mines Mutant | -9/Materials Mutant | -8/Materials Hacker-Mutant | -7/Factory Hacker-Mutant | -7/Waste Hacker-Tank | -7/Factory Scavenger-Mutant | -7/Lower Caves Hacker-Mutant | -7/Lower Caves Hacker-Tank | -6/Factory Hacker-Gunner | -6/Lower Caves Hacker-Gunner | -6/Lower Caves Hacker-Skirmisher | -5/Factory Resources | -11 -10 -10 -9 -8 -7 -7 -7 -7 -7 -6 -6 -6 -5 ----------- Run | Yrd Mat Min Mat Mat Fac Was Fac Low Low Fac Low Low Fac Matter Collected 2558 | 155 33 . 104 283 475 102 565 344 50 157 72 10 208 Remotely . | . . . . . . . . . . . . . . Salvage Created 4155 | . . . 173 454 868 . 1224 693 101 184 109 . 349 Parts 191 | . . . 10 22 43 . 54 26 9 4 5 . 18 Haulers Intercepted 1 | . . . . . 1 . . . . . . . . Recyclers Shooed 4 | . . . . 1 2 . . . . . . . 1 Parts Field Recycled . | . . . . . . . . . . . . . . Retrieved Matter . | . . . . . . . . . . . . . . Parts Self-Destructed 36 | . . . . . . . . 24 7 . 5 . . Prevented 1 | . . . . . . . . . 1 . . . . Kills | -11 -10 -10 -9 -8 -7 -7 -7 -7 -7 -6 -6 -6 -5 ------- Run | Yrd Mat Min Mat Mat Fac Was Fac Low Low Fac Low Low Fac Combat Hostiles Destroyed 88 | . . . 8 8 16 . 27 10 4 3 4 . 8 Melee 12 | . . . . 5 4 . . 2 1 . . . . Guns 47 | . . . 4 3 3 . 20 7 3 2 4 . 1 Cannons 20 | . . . . . 9 . 5 . . . . . 6 AOE 9 | . . . 4 . . . 2 1 . 1 . . 1 Classes Destroyed 12 | . . . 5 2 3 . 1 1 . . . . . Worker 7 | . . . 3 2 1 . 1 . . . . . . Builder 6 | . . . . . 3 . . . . . . . 3 Hauler 1 | . . . . . 1 . . . . . . . . Recycler 4 | . . . . 2 2 . . . . . . . . Operator 1 | . . . 1 . . . . . . . . . . Watcher 2 | . . . . . . . 1 . . . . . 1 Swarmer 21 | . . . 4 3 . . 1 . 4 . 4 . 5 Grunt 49 | . . . 2 . 11 . 25 8 . 3 . . . Duelist 1 | . . . . . . . . 1 . . . . . Sentry 10 | . . . 2 3 2 . . 1 . . . . 2 Hunter 2 | . . . . 2 . . . . . . . . . Programmer 5 | . . . . . 3 . 1 . . . . . 1 Best Kill Streak 8 | . . . 8 4 5 . 7 4 4 3 4 . 3 Combat Bots Only 7 | . . . 4 4 5 . 7 4 4 3 4 . 3 Max Kills in Single Turn 3 | . . . 2 1 1 . 2 1 1 1 2 . 3 Gunslinging . | . . . . . . . . . . . . . . Exploded 2 | . . . 2 . . . 2 1 . 1 . . 1 Melee 1 | . . . . 1 1 . . 1 1 . . . . Uniques/NPCs Destroyed . | . . . . . . . . . . . . . . Combat | -11 -10 -10 -9 -8 -7 -7 -7 -7 -7 -6 -6 -6 -5 -------- Run | Yrd Mat Min Mat Mat Fac Was Fac Low Low Fac Low Low Fac Hostile Shots Fired 636 | . . . 57 53 148 5 92 66 53 21 11 . 130 Missed 179 | . . . 16 11 39 . 22 18 25 3 4 . 41 Hits 457 | . . . 41 42 109 5 70 48 28 18 7 . 89 Melee 10 | . . . . . . 5 . 5 . . . . . Projectile 447 | . . . 41 42 109 . 70 43 28 18 7 . 89 AOE 1 | . . . . . . . . . . . . . 1 Critical Strikes 21 | . . . 3 2 6 2 . 3 . 1 . . 4 Actively Blocked 2 | . . . . . . 2 . . . . . . . Damage Taken 6851 | . . . 442 412 1019 200 972 597 261 568 218 . 2162 Core 2370 | . . . 111 94 250 13 255 120 18 353 150 . 1006 Absorbed by Shields 231 | . . . . . 132 . . . 76 23 . . . Redirected to Shielding 52 | . . . . . . 52 . . . . . . . Ignored by Resistances 1679 | . . . 131 121 338 52 246 176 100 72 24 . 419 Core Remaining (%) 66 | 100 . 100 72 82 . . . . 6 . . 40 . Volleys Fired 195 | . . . 31 6 42 . 52 21 6 7 3 . 27 Largest 4 | . . . 2 1 3 . 3 3 2 4 4 . 4 Hottest 359 | . . . 85 65 133 . 143 128 88 285 294 . 359 Shots Fired 418 | . . . 47 6 73 . 145 53 11 24 12 . 47 Gun 306 | . . . 33 6 39 . 125 53 11 24 12 . 3 Cannon 95 | . . . . . 34 . 17 . . . . . 44 Launcher 16 | . . . 14 . . . 2 . . . . . . Special 1 | . . . . . . . 1 . . . . . . Kinetic 170 | . . . 16 . 45 . 83 21 5 . . . . Thermal 176 | . . . 17 6 22 . 42 25 . 14 10 . 40 Explosive 16 | . . . 14 . . . 2 . . . . . . Electromagnetic 55 | . . . . . 6 . 17 7 6 10 2 . 7 Robot Hit Streak 20 | . . . 14 20 12 . 10 19 3 5 7 . 12 Robot Miss Streak 7 | . . . 7 3 6 . 3 2 6 3 1 . 3 Penetration Max 1 | . . . . . . . 1 . . . . . . Secondary Targets 7 | . . . . . . . 4 . 1 2 . . . Max Gunslinging Chain 1 | . . . . . . . 1 . 1 1 . . . Shots Hit Robots 353 | . . . 33 26 76 . 106 54 10 17 4 . 27 Core Hits 233 | . . . 18 19 53 . 66 42 8 9 4 . 14 Critical Kills 2 | . . . . . . . 1 . . . . . 1 Critical Parts Destroyed . | . . . . . . . . . . . . . . Critical Strikes 13 | . . . . 1 1 . 5 2 . 2 1 . 1 Burn 4 | . . . . . . . 1 . . 2 1 . . Meltdown 1 | . . . . . . . . . . . . . 1 Destroy 1 | . . . . . . . 1 . . . . . . Blast 4 | . . . . . 1 . 3 . . . . . . Sever 1 | . . . . 1 . . . . . . . . . Impale 2 | . . . . . . . . 2 . . . . . Melee Attacks 49 | . . . . 21 16 . . 10 2 . . . . Impact . | . . . . . . . . . . . . . . Slashing 37 | . . . . 21 16 . . . . . . . . Piercing 12 | . . . . . . . . 10 2 . . . . Sneak Attacks 13 | . . . . 5 8 . . . . . . . . Combat Hostiles . | . . . . . . . . . . . . . . Follow-up Attacks 1 | . . . . . 1 . . . . . . . . Damage Inflicted 9693 | . 3 6 933 847 2081 . 2691 1318 126 480 112 . 1096 Guns 4198 | . . . 291 83 510 . 1805 860 103 349 112 . 85 Cannons 1978 | . . . . . 797 . 337 . . . . . 844 Explosions 1607 | . . . 642 . . . 548 181 . 128 . . 108 Melee 1829 | . . . . 764 765 . . 277 23 . . . . Ramming 81 | . 3 6 . . 9 . 1 . . 3 . . 59 Kinetic 2740 | . . . 89 . 972 . 1342 297 40 . . . . Thermal 3348 | . . . 202 83 313 . 840 599 . 290 76 . 945 Explosive 939 | . . . 642 . . . 297 . . . . . . Electromagnetic 756 | . . . . . 22 . 211 145 63 187 36 . 92 Impact . | . . . . . . . . . . . . . . Slashing 1529 | . . . . 764 765 . . . . . . . . Piercing 300 | . . . . . . . . 277 23 . . . . Highest Corruption 6 | . . . . . 3 3 5 5 5 4 4 4 6 Average Corruption 3 | . . . . . 2 3 3 5 5 4 4 4 4 Corruption Purged . | . . . . . . . . . . . . . . Corruption Blocked . | . . . . . . . . . . . . . . Effects 77 | . . . . . 7 5 15 19 8 2 16 . 5 Message Errors 16 | . . . . . 2 1 4 4 2 1 2 . . Matter Fused 18 | . . . . . 1 1 2 7 1 . 3 . 3 Heat Flow Errors 3 | . . . . . 1 . . . 1 . 1 . . Energy Discharges 12 | . . . . . 1 1 1 5 . . 4 . . Parts Rejected 2 | . . . . . . . 1 1 . . . . . Parts Fused 1 | . . . . . . . . . . . 1 . . Data Loss (minor) 9 | . . . . . 1 1 2 . 2 . 1 . 2 Data Loss (major) 7 | . . . . . . . 3 1 1 . 2 . . Misfires 3 | . . . . . . . 1 . . 1 1 . . Alerts 2 | . . . . . . 1 . . . . 1 . . Weapon Failures 4 | . . . . . 1 . 1 1 1 . . . . Overload Shots . | . . . . . . . . . . . . . . Overflow Damage 303 | . . . 48 50 78 . 24 49 . . . . 54 Projectiles 26 | . . . . . 25 . . . . . . . 1 Explosions 126 | . . . 48 . . . 24 1 . . . . 53 Melee 151 | . . . . 50 53 . . 48 . . . . . Knockbacks 12 | . . . . . 10 . 2 . . . . . . Impact . | . . . . . . . . . . . . . . Kinetic 11 | . . . . . 9 . 2 . . . . . . Secondary 1 | . . . . . 1 . . . . . . . . Self-Inflicted Damage 147 | . . . 32 . . . . 48 . 1 . . 66 Shots 3 | . . . 1 . . . . 1 . . . . 1 Rammed 2 | . . . . . . . 1 . . 1 . . . Targets Rammed 24 | . 2 1 . . 3 . 1 . . 1 . . 16 Kicked 22 | . 2 1 . . 3 . . . . . . . 16 Crushed . | . . . . . . . . . . . . . . Highest Temperature 1220 | . . . 355 76 561 . 542 364 416 1220 610 . 982 Average Temperature 220 | . . . 124 29 215 . 204 132 241 593 289 . 282 Received Heat Transfer 2133 | . . . 207 99 633 . 549 300 26 160 . . 159 Effects 151 | . . . 1 . 36 . 25 1 4 33 9 . 42 Shutdowns 60 | . . . . . 13 . 12 1 3 10 5 . 16 Energy Bleed 15 | . . . 1 . 3 . 2 . 1 1 2 . 5 Interference 21 | . . . . . 5 . 8 . . 4 1 . 3 Matter Decay 6 | . . . . . 1 . . . . 2 . . 3 Short Circuit 6 | . . . . . 1 . 2 . . . . . 3 Damage (minor) 14 | . . . . . 3 . . . . 6 . . 5 Damage (major) 20 | . . . . . 10 . . . . 7 . . 3 Damage (core) 9 | . . . . . . . 1 . . 3 1 . 4 Siege Activations . | . . . . . . . . . . . . . . Martial Activations . | . . . . . . . . . . . . . . Shielding Activations . | . . . . . . . . . . . . . . Robots Disrupted . | . . . . . . . . . . . . . . Combat Hostiles . | . . . . . . . . . . . . . . Robots Corrupted . | . . . . . . . . . . . . . . Combat Hostiles . | . . . . . . . . . . . . . . Parts Fried 1 | . . . . . . . . . . 1 . . . Impact Corruptions . | . . . . . . . . . . . . . . Robots Melted 1 | . . . . . . . . . . . . . 1 Combat Hostiles . | . . . . . . . . . . . . . . Parts Melted 8 | . . . 1 . . . . 1 . 1 2 . 3 Heat Transferred 5941 | . . . 491 105 373 . 1519 1142 . 750 261 . 1300 Parts Sabotaged . | . . . . . . . . . . . . . . Parts Stolen . | . . . . . . . . . . . . . . Parts Stripped . | . . . . . . . . . . . . . . Power Chain Reactions 3 | . . . . . . . . 2 . 1 . . . Alert | -11 -10 -10 -9 -8 -7 -7 -7 -7 -7 -6 -6 -6 -5 ------- Run | Yrd Mat Min Mat Mat Fac Was Fac Low Low Fac Low Low Fac Maximum Alert Level 2 | . . . . . 1 . 2 . . . . . . Low Security (%) 87 | 100 100 100 100 100 99 100 23 . . 100 . . 100 Level 1 10 | . . . . . . . 64 . . . . . . Level 2 1 | . . . . . . . 12 . . . . . . Level 3 . | . . . . . . . . . . . . . . Level 4 . | . . . . . . . . . . . . . . Level 5 . | . . . . . . . . . . . . . . High Security . | . . . . . . . . . . . . . . Max Security . | . . . . . . . . . . . . . . Peak Influence 476 | . 11 30 185 95 204 4 476 . . 34 . . 165 Initial 59 | . . 3 . 59 21 4 . . . . . . 23 Average 68 | . 1 . 43 38 72 . 273 . . 7 . . 30 Influence Increases 2927 | . 21 30 295 245 523 . 906 250 90 103 90 . 374 Destroy 0b10 Robot/C 1760 | . . . 160 160 320 . 540 200 80 60 80 . 160 Destroy 0b10 Robot/NC 105 | . . . 20 20 35 . 10 . . . . . 20 Destroy Leader 336 | . . . 40 50 72 . 82 20 10 10 10 . 42 Successful Hack 127 | . 21 . 10 . 34 . 34 . . 28 . . . Disable Machine 207 | . . . 27 . . . 126 . . . . . 54 Destroy Structure 167 | . . . 38 . 2 . 54 . . 5 . . 68 Partial Spotted 15 | . . . . . 15 . . . . . . . . Lose Combat Pursuer 210 | . . 30 . 15 45 . 60 30 . . . . 30 Influence Decreases 2832 | . 10 41 130 355 564 14 440 650 156 88 45 17 322 Entered New Map 432 | . . 8 . 106 34 10 . 210 19 . 8 17 20 Time Decay 2100 | . 10 33 120 229 480 4 390 410 117 58 27 . 222 Lost Part 290 | . . . 10 20 40 . 50 30 20 30 10 . 80 Lost Ally 10 | . . . . . 10 . . . . . . . . Squads Dispatched 17 | . 1 . . . 3 . 8 . . 3 . . 2 Investigation 8 | . 1 . . . 1 . 3 . . 2 . . 1 Extermination 4 | . . . . . 2 . 1 . . . . . 1 Reinforcement 5 | . . . . . . . 4 . . 1 . . . Assault . | . . . . . . . . . . . . . . Garrison . | . . . . . . . . . . . . . . Intercept . | . . . . . . . . . . . . . . Searches Triggered . | . . . . . . . . . . . . . . Construction Impeded 3 | . . . . . . . 2 . . 1 . . . Haulers Reinforced 1 | . . . . . . . 1 . . . . . . Active Scanning Responses . | . . . . . . . . . . . . . . Cargo Convoy Interrupts . | . . . . . . . . . . . . . . Stealth | -11 -10 -10 -9 -8 -7 -7 -7 -7 -7 -6 -6 -6 -5 --------- Run | Yrd Mat Min Mat Mat Fac Was Fac Low Low Fac Low Low Fac Distress Signals 6 | . . . 1 . 2 . 2 . . . . . 1 Communications Jammed . | . . . . . . . . . . . . . . Distress Signals . | . . . . . . . . . . . . . . Times Spotted 128 | . 1 . 10 11 21 1 34 12 9 3 4 . 22 Peak Tracking Total 8 | . 1 2 5 6 8 1 6 4 5 3 4 . 6 Tactical Retreats 12 | . . 1 . 1 3 . 4 2 . . . . 1 Traps | -11 -10 -10 -9 -8 -7 -7 -7 -7 -7 -6 -6 -6 -5 ------- Run | Yrd Mat Min Mat Mat Fac Was Fac Low Low Fac Low Low Fac Traps Triggered 2 | . . . . . 1 . 1 . . . . . . Indirectly . | . . . . . . . . . . . . . . Trap Hack Attempts . | . . . . . . . . . . . . . . Triggered . | . . . . . . . . . . . . . . Disarmed 4 | . . . . . . . 4 . . . . . . Reprogrammed . | . . . . . . . . . . . . . . Reused . | . . . . . . . . . . . . . . Traps Extracted . | . . . . . . . . . . . . . . Installed . | . . . . . . . . . . . . . . Triggered . | . . . . . . . . . . . . . . Machines | -11 -10 -10 -9 -8 -7 -7 -7 -7 -7 -6 -6 -6 -5 ---------- Run | Yrd Mat Min Mat Mat Fac Was Fac Low Low Fac Low Low Fac Machines Disabled 23 | . . . 3 . . . 14 . . . . . 6 Max in Single Turn 9 | . . . 1 . . . 9 . . . . . 3 Machines Repaired . | . . . . . . . . . . . . . . Machines Dismantled . | . . . . . . . . . . . . . . Machines Sabotaged . | . . . . . . . . . . . . . . Overloaded Fab Kills . | . . . . . . . . . . . . . . Hacking | -11 -10 -10 -9 -8 -7 -7 -7 -7 -7 -6 -6 -6 -5 --------- Run | Yrd Mat Min Mat Mat Fac Was Fac Low Low Fac Low Low Fac Machines Accessed 22 | . 2 . 1 . 3 . 6 2 1 3 . . 4 Terminals 17 | . 2 . 1 . 1 . 5 1 . 3 . . 4 Fabricators 2 | . . . . . 1 . 1 . . . . . . Repair Stations . | . . . . . . . . . . . . . . Recycling Units 1 | . . . . . 1 . . . . . . . . Scanalyzers . | . . . . . . . . . . . . . . Garrison Access . | . . . . . . . . . . . . . . Total Hacks 52 | . 6 . 3 . 6 . 14 5 1 8 . . 9 Successful 38 | . 4 . 3 . 2 . 11 5 1 7 . . 5 Failed 14 | . 2 . . . 4 . 3 . . 1 . . 4 Catastrophic 2 | . . . . . 1 . . . . . . . 1 Database Lockouts . | . . . . . . . . . . . . . . Manual . | . . . . . . . . . . . . . . Terminals 42 | . 6 . 3 . 3 . 12 1 . 8 . . 9 Fabricators 4 | . . . . . 2 . 2 . . . . . . Repair Stations . | . . . . . . . . . . . . . . Recycling Units 1 | . . . . . 1 . . . . . . . . Scanalyzers . | . . . . . . . . . . . . . . Garrison Access . | . . . . . . . . . . . . . . Terminal Hacks 36 | . 4 . 3 . 1 . 10 5 1 7 . . 5 Record 20 | . 1 . 3 . . . 5 5 . 4 . . 2 Robot Analysis 1 | . 1 . . . . . . . . . . . . Prototype ID Bank 1 | . . . . . . . . . . . . . 1 Open Door 1 | . . . . . . . . . 1 . . . . Open DSF 3 | . . . . . . . 1 . . 1 . . 1 Emergency Access Points 1 | . . . . . 1 . . . . . . . . Terminal Index 2 | . . . . . . . 1 . . 1 . . . Alert Level 1 | . . . . . . . . . . . . . 1 Locate Traps 1 | . 1 . . . . . . . . . . . . Disarm Traps 1 | . . . . . . . 1 . . . . . . Dispatch Records 1 | . . . . . . . 1 . . . . . . Recall Assault 1 | . . . . . . . 1 . . . . . . Registered Prototypes 1 | . . . . . . . . . . 1 . . . Zone Layout 1 | . 1 . . . . . . . . . . . . Fabricator Hacks 2 | . . . . . 1 . 1 . . . . . . Network Status 1 | . . . . . . . 1 . . . . . . Build 1 | . . . . . 1 . . . . . . . . Repair Station Hacks . | . . . . . . . . . . . . . . Recycling Unit Hacks . | . . . . . . . . . . . . . . Scanalyzer . | . . . . . . . . . . . . . . Garrison Access Hacks . | . . . . . . . . . . . . . . Unauthorized Hacks . | . . . . . . . . . . . . . . Terminals . | . . . . . . . . . . . . . . Fabricators . | . . . . . . . . . . . . . . Repair Stations . | . . . . . . . . . . . . . . Recycling Units . | . . . . . . . . . . . . . . Scanalyzers . | . . . . . . . . . . . . . . Garrison Access . | . . . . . . . . . . . . . . Data Cores Recovered 1 | . . . 1 . . . . . . . . . . Used . | . . . . . . . . . . . . . . Hacking Detections 15 | . 1 . 1 . 3 . 5 . . 2 . . 3 Full Trace Events 8 | . 1 . . . 1 . 3 . . 2 . . 1 Feedback Events . | . . . . . . . . . . . . . . Feedback Blocked . | . . . . . . . . . . . . . . Robot Schematics Acquired . | . . . . . . . . . . . . . . Robots Built 1 | . . . . . 1 . . . . . . . . Authchips . | . . . . . . . . . . . . . . Time 44 | . . . . . 44 . . . . . . . . Total Robot Build Rating 4 | . . . . . 4 . . . . . . . . Part Schematics Acquired . | . . . . . . . . . . . . . . Parts Built . | . . . . . . . . . . . . . . Authchips . | . . . . . . . . . . . . . . Time . | . . . . . . . . . . . . . . Total Part Build Rating . | . . . . . . . . . . . . . . Parts Repaired . | . . . . . . . . . . . . . . Time . | . . . . . . . . . . . . . . Parts Recycled . | . . . . . . . . . . . . . . Recycled Matter . | . . . . . . . . . . . . . . Retrieved Matter . | . . . . . . . . . . . . . . Retrieved Components . | . . . . . . . . . . . . . . Parts Scanalyzed . | . . . . . . . . . . . . . . Part Schematics Acquired . | . . . . . . . . . . . . . . Parts Damaged . | . . . . . . . . . . . . . . Bothacking | -11 -10 -10 -9 -8 -7 -7 -7 -7 -7 -6 -6 -6 -5 ------------ Run | Yrd Mat Min Mat Mat Fac Was Fac Low Low Fac Low Low Fac Used RIF Installer . | . . . . . . . . . . . . . . Robots Hacked 1 | . . . . . . . 1 . . . . . . Non-combat . | . . . . . . . . . . . . . . Combat 1 | . . . . . . . 1 . . . . . . Robot Hacks Applied 1 | . . . . . . . 1 . . . . . . parse_system 1 | . . . . . . . 1 . . . . . . Relay Couplers Released . | . . . . . . . . . . . . . . Fabnet Peak Effective % . | . . . . . . . . . . . . . . Robots Rewired . | . . . . . . . . . . . . . . Allies Hacked . | . . . . . . . . . . . . . . Hacks Repelled . | . . . . . . . . . . . . . . Allies | -11 -10 -10 -9 -8 -7 -7 -7 -7 -7 -6 -6 -6 -5 -------- Run | Yrd Mat Min Mat Mat Fac Was Fac Low Low Fac Low Low Fac Total Allies 1 | . . . . . 1 . . . . . . . . Largest Group 1 | . . . . . 1 . . . . . . . . Highest-Rated Group 40 | . . . . . 40 . . . . . . . . Highest-Rated Ally 40 | . . . . . 40 . . . . . . . . Total Orders 3 | . . . . . 3 . . . . . . . . FOLLOW 1 | . . . . . 1 . . . . . . . . GUARD 1 | . . . . . 1 . . . . . . . . AID 1 | . . . . . 1 . . . . . . . . Ally Attacks . | . . . . . . . . . . . . . . Total Damage . | . . . . . . . . . . . . . . Kills . | . . . . . . . . . . . . . . Allies Corrupted . | . . . . . . . . . . . . . . Allies Melted . | . . . . . . . . . . . . . . Intel | -11 -10 -10 -9 -8 -7 -7 -7 -7 -7 -6 -6 -6 -5 ------- Run | Yrd Mat Min Mat Mat Fac Was Fac Low Low Fac Low Low Fac Active Infowar (turns) 4465 | . 165 1221 301 485 814 25 . . . . 573 . 881 Optics 502 | . . . . . . . . . . . . . 502 Sensors 2985 | . 141 1221 299 485 814 25 . . . . . . . Structural 2304 | . 165 1221 301 485 132 . . . . . . . . Seismic 436 | . . . 76 360 . . . . . . . . . Decoding 1079 | . . . . . . . . . . . 573 . 506 Cloaking 700 | . . . . . . . . . . . . . 700 Robot Analysis Total 1 | . 1 . . . . . . . . . . . . Derelict Logs Recovered 3 | . . 1 . . . . . 1 . . 1 . . Drone Launches . | . . . . . . . . . . . . . . Drone Recoveries . | . . . . . . . . . . . . . . Decoded 0b10 Intel 11 | . . . . . . . . . . . . . 11 Traps 1 | . . . . . . . . . . . . . 1 Items 8 | . . . . . . . . . . . . . 8 Guards 2 | . . . . . . . . . . . . . 2 Exploration | -11 -10 -10 -9 -8 -7 -7 -7 -7 -7 -6 -6 -6 -5 ------------- Run | Yrd Mat Min Mat Mat Fac Was Fac Low Low Fac Low Low Fac Turns Passed 7435 | 70 215 1221 301 485 1102 240 892 826 274 247 662 19 881 Spaces Moved 3427 | 52 158 270 170 272 586 117 441 539 75 73 238 12 424 Core 55 | 3 . . . . . 1 . . 24 27 . . . Treads 566 | . . . . 147 . 48 371 . . . . . . Legs 2130 | 49 158 270 170 125 586 68 . . . 46 238 12 408 Wheels . | . . . . . . . . . . . . . . Hover 676 | . . . . . . . 70 539 51 . . . 16 Flight . | . . . . . . . . . . . . . . Fastest Speed 50 | 50 120 120 120 120 123 160 56 56 180 120 120 120 120 Average Speed 147 | 115 120 120 120 137 141 185 153 129 328 283 124 143 172 Slowest Speed 750 | 120 120 120 120 190 270 750 240 240 550 600 190 190 260 Overloaded Moves . | . . . . . . . . . . . . . . Propulsion Burnouts . | . . . . . . . . . . . . . . Robots Hopped . | . . . . . . . . . . . . . . Potential Cave-ins . | . . . . . . . . . . . . . . Cave-ins Triggered . | . . . . . . . . . . . . . . Exploration Rate (%) 26 | 5 38 46 24 19 19 74 12 70 10 2 39 4 12 Regions Visited 13 Branch Regions 5 Pre-discovered Areas . | . . . . . . . . . . . . . . Known Exits Taken 1 | . . . . . . . . . . . 1 . . Unknown Exits Taken 10 | 1 1 1 1 1 . . 1 1 1 1 . 1 . Scrap Searched 13 | . . 1 . . . . . 4 . . 6 2 . Spaces Dug 5 | . . . 5 . . . . . . . . . . Terrain Destroyed 142 | . . . 42 . 2 . 52 6 . 4 . . 36 Melee . | . . . . . . . . . . . . . . Projectile 19 | . . . . . 2 . 4 . . . . . 13 AOE 123 | . . . 42 . . . 48 6 . 4 . . 23 Terrain Rammed . | . . . . . . . . . . . . . . Walls Destroyed . | . . . . . . . . . . . . . . Machines Disabled . | . . . . . . . . . . . . . . Actions | -11 -10 -10 -9 -8 -7 -7 -7 -7 -7 -6 -6 -6 -5 --------- Run | Yrd Mat Min Mat Mat Fac Was Fac Low Low Fac Low Low Fac Total 5342 | 58 182 1167 221 346 767 139 541 610 93 90 595 13 520 Wait 1425 | . 20 896 6 28 79 . 19 22 . . 347 . 8 Move 3415 | 51 157 269 169 271 586 116 440 538 74 72 237 11 424 Hop . | . . . . . . . . . . . . . . Pick Up 35 | . 1 1 4 2 6 2 4 2 3 1 2 . 7 Fast Attach 71 | 6 1 . 4 7 10 10 7 5 1 5 2 1 12 Attach 18 | . . . 1 1 . . 6 3 1 2 . . 4 Detach 1 | . . . . . . . 1 . . . . . . Swap 45 | 1 1 . 3 2 12 . 6 6 1 2 3 1 7 Drop 64 | . . . 3 8 15 9 5 3 5 . 1 . 15 Fire 195 | . . . 31 6 42 . 52 21 6 7 3 . 27 Melee 47 | . . . . 21 14 . . 10 2 . . . . Ram 1 | . . . . . . . . . . 1 . . . Kick 22 | . 2 1 . . 3 . . . . . . . 16 Crush 1 | . . . . . . . 1 . . . . . . Escape Stasis . | . . . . . . . . . . . . . . Rewire 2 | . . . . . . 2 . . . . . . . Trap . | . . . . . . . . . . . . . . Miscellaneous . | . . . . . . . . . . . . . . Route ------- -11/Scrapyard -10/Materials -10/Mines -9/Materials -8/Materials (discovered 2 exits: *Fac / [*Sto]) -7/Factory -7/Waste -7/Factory -7/Lower Caves -7/Lower Caves -6/Factory -6/Lower Caves -6/Lower Caves -5/Factory History --------- Turn | Location | Event 24 | -11/Scrapyard | Discovered new exit (range 14) 71 | -11/Scrapyard | Entered Materials 72 | -10/Materials | Met a group of wandering Federalists 272 | -10/Materials | Discovered new exit (range 12) 286 | -10/Materials | Entered Mines 318 | -10/Mines | Build established: Mutant 426 | -10/Mines | Learned Materials security intel 1492 | -10/Mines | Discovered new exit (range 5) 1507 | -10/Mines | Entered Materials 1507 | -9/Materials | Evolved 2 slots: Power x1, Utility x1 1763 | -9/Materials | Discovered new exit (range 16) 1808 | -9/Materials | Entered another Materials area 1808 | -8/Materials | Evolved 2 slots: Propulsion x1, Utility x1 1808 | -8/Materials | Discovered new exit (range 7) 2276 | -8/Materials | Discovered new exit (range 10) 2293 | -8/Materials | Entered Factory 2293 | -7/Factory | Evolved 2 slots: Power x1, Weapon x1 2502 | -7/Factory | Fabricated I-36 Angel (x1) 2876 | -7/Factory | Lost 3 parts (2p1n) 3139 | -7/Factory | Build established: Hacker-Mutant 3395 | -7/Factory | Sucked down chute 3395 | -7/Factory | Entered Waste 3395 | -7/Waste | The area was eerily silent 3525 | -7/Waste | A Compactor rumbled back to life 3526 | -7/Waste | Spotted C-40 Crusher 3554 | -7/Waste | Crushed by Compactor (1 part destroyed, 2 dropped) 3563 | -7/Waste | Crushed by Compactor (1 part destroyed) 3594 | -7/Waste | Lost 4 parts (2p1u1w) 3616 | -7/Waste | Discovered new exit (range 12) 3635 | -7/Waste | Entered Factory 3884 | -7/Factory | Core integrity fell below 50% 3901 | -7/Factory | Destroyed 7 combat bots 4243 | -7/Factory | Build established: Hacker-Tank 4416 | -7/Factory | Lost 3 parts (2p1u) 4520 | -7/Factory | Discovered new exit (range 7) 4527 | -7/Factory | Entered Lower Caves 4577 | -7/Lower Caves | Attracted the attention of an 0b10 checkpoint 4803 | -7/Lower Caves | Learned Research trap positions 4803 | -7/Lower Caves | Learned Armory security intel 5121 | -7/Lower Caves | Build established: Scavenger-Mutant 5172 | -7/Lower Caves | Core integrity fell below 20% 5283 | -7/Lower Caves | Learned location of 1 exit from Proximity Caves 5286 | -7/Lower Caves | Discovered new exit (range 7) 5353 | -7/Lower Caves | Entered another Lower Caves area 5468 | -7/Lower Caves | Build established: Hacker-Mutant 5564 | -7/Lower Caves | Discovered new exit (range 6) 5608 | -7/Lower Caves | Attracted the attention of an 0b10 checkpoint 5627 | -7/Lower Caves | Entered Factory 5627 | -6/Factory | Evolved 2 slots: Propulsion x1, Weapon x1 5806 | -6/Factory | Lost 4 parts (1p2u1w) 5835 | -6/Factory | Discovered new exit (range 10) 5874 | -6/Factory | Entered Lower Caves 6235 | -6/Lower Caves | Build established: Hacker-Gunner 6407 | -6/Lower Caves | Encountered a Warlord checkpoint 6416 | -6/Lower Caves | Identified exit to Lower Caves 6519 | -6/Lower Caves | Core integrity fell below 50% 6536 | -6/Lower Caves | Entered another Lower Caves area 6538 | -6/Lower Caves | Discovered new exit (range 13) 6555 | -6/Lower Caves | Entered Factory 6555 | -5/Factory | Evolved 2 slots: Power x1, Utility x1 7078 | -5/Factory | Core integrity fell below 50% 7250 | -5/Factory | Lost 4 parts (2p1n1u) 7313 | -5/Factory | Core integrity fell below 20% 7361 | -5/Factory | Build established: Hacker-Skirmisher 7436 | -5/Factory | Destroyed by G-67 Veteran with Plasma Rifle Last Messages --------------- U-05 Engineer lays Concrete. K-01 Serf collects debris. U-05 Engineer lays Concrete. Acquired Antigrav System. U-05 Engineer lays Concrete. K-01 Serf collects debris. U-05 Engineer lays Concrete. K-01 Serf collects debris. System corrupted: Matter fused (-8). U-05 Engineer lays Concrete. K-01 Serf collects debris. U-05 Engineer lays Concrete. System corrupted: Component data lost. U-05 Engineer lays Concrete. K-01 Serf collects debris. U-05 Engineer lays Concrete. K-01 Serf collects debris. U-05 Engineer lays Concrete. Cloaking Device destroyed. [Achievement: 10k Club] Map ----- +----------------------------------------------------+ | ?????????????????????????????????????????????????? | | ???????????????????? ?????????????????????????? | | ??????????????????# ???????????????????????? " | | ??????????????????# ??????????????????????? " | | ??????????????????# ?????????????????????? " | | ??????????????????# ?????????????????????? " | | ??????????????????# #????????????????????? " | | ??????????????????# #????????????????????? | | ??????????????????# #????????????????????? " | | ??????????????????# #?????????????????????#^ " | | ???????????# ""???# #?????????????????????# " | | ??^????????# """"?# #?????????????????????# " | | ???????????# """"?# #?????????????????????# " | | ???######### # #?????????????????????# | | ???# # ! + #?????????????????????# " | | ???# """ # ! " #?????????????????????# " | | ???# """ # ; #????????????????????## " | | ???# """ ##;;;;;; ####################### | | ???# # k ; ] + % | | ???# # # ######### | | ??# = += # #######?# ^ | | # # + t ] ###????## | | # # # + ?????## | | # """" !# # "" """ #??????## " | | # """" # u ; """" """ #???????# " | | # """" # g ;@"""" """ #???????# " | | # """" # ; """" """ #???????# | | # """" # g # """ """ #???????# | | # """" + g ; " "" #??????## | | # """" # g # #??????# | | # # *g[ ;;;;;##;;;;;;;;;#####??????# | | ######### ; ### ; ! ; #??????? + | | ###??# ; ;##????? # ] | | #????##; ;##??? # !* | | #?##??#; %; #??# ! = ###### | | #?# #?#; ;##### ?????# | | #??# ##;;;;;;;;;##### ???????# | | #################### ###; + ?????????# | | #????????????# # #??????????## | | #????????????# # ############ | | #????????????# # | | ############## # | | # ! !# %+ | | # # !! # | | # # !! # | | # # ###################### | | # # #????????????????????## | | # [ # "" #?????????????????????? | | + [ =" "" """#?????????????????????? | | # ! %+ """ S"#?????????????????????? | +----------------------------------------------------+ Best States ------------- Heat Dissipation 56 Energy Generation 53 Energy Capacity 775 Matter Stores 300 Matter Capacity 300 Sight Range 22 Robot Scan Range 16 Terrain Scan Density 85 Cloak Strength 3 Armor Coverage 150 Resistance: KI 20 Resistance: TH 45 Resistance: EX 20 Resistance: EM 20 Resistance: I 20 Resistance: S 20 Resistance: P 20 Propulsion Shielding 66 Weapon Cycling 15 Phase Shifting 5 Evasion (%) 55 Core Analysis 6 Recoil Reduction 3 Offensive Hacking 30 Defensive Hacking 11 Item Schematics ----------------- None Robot Schematics ------------------ None Fabricated ------------ I-36 Angel | x1 | -7/Factory | Preloaded Repaired ---------- Nothing Alien Tech Used ----------------- None Achievements -------------- 10k Club Leap Before You Look My Command Is Your Wish Please Form A Line Tourist Challenges ------------ None Game ------ Seed ScrapoidSignalDeconstructor Manual? 0 Play Time 00:58:48 Cumulative 3.5 hours Start 2025.09.22 @ 16:08:17 End 2025.09.22 @ 18:06:04 Sessions 1 Manual Loads 0 Difficulty Adventurer Special Mode None Game No. 6 Rogue 0 Adventurer 6 Explorer 0 Win Type - Total 0 Types 0/0/0/0/0/0/0/0/0/0 Lore% 2 Gallery% 12 Achievement% 12 Wizard Run 0 Options --------- Layout 0 ASCII 0 Keyboard 0 Movement Numpad Keybinds 0 Fullscreen 2 Font 24/Smallcaps Map View 38x25 Zoom Use 99% Tactical HUD 0 Map Filters NONE Filters NONE Steam 1 RUN: 1849a4c9-b5bc-4fa7-bea5-519d806cf0c2